Workbook

Sheet 收入支出决算总表
A1: 附件2
A2: 收入支出决算总表
D3: 公开01表
A4: 公开部门：重庆市江津区生态环境局 | D4: 单位：万元
A5: 收入 | C5: 支出
A6: 项目 | B6: 决算数 | C6: 项目 | D6: 决算数
A7: 一、财政拨款收入 | B7: 8,465.60 | C7: 一、教育支出 | D7: 6.28
A8: 二、上级补助收入 | C8: 二、社会保障和就业支出 | D8: 127.96
A9: 三、事业收入 | C9: 三、卫生健康支出 | D9: 57.14
A10: 四、经营收入 | C10: 四、节能环保支出 | D10: 5,916.83
A11: 五、附属单位上缴收入 | C11: 五、住房保障支出 | D11: 48.4
A12: 六、其他收入 | B12: 3.05
C13: ……
A16: 本年收入合计 | B16: =SUM(B7:B15) -> 8,468.65 | C16: 本年支出合计 | D16: =SUM(D7:D15) -> 6,156.61
A17: 用事业基金弥补收支差额 | C17: 结余分配
A18: 年初结转和结余 | B18: 1,511.40 | C18: 年末结转和结余 | D18: 3,823.44
A19: 合计 | B19: =SUM(B16:B18) -> 9,980.05 | C19: 合计 | D19: =SUM(D16:D18) -> 9,980.05
A20: 备注：本表反映部门本年度的总收支和年末结转结余等情况。

Sheet 收入决算表
A1: 收入决算表
J2: 公开02表
A3: 公开部门：重庆市江津区生态环境局 | J3: 单位：万元
A4: 项目 | C4: 本年收入合计 | D4: 财政拨款收入 | E4: 上级补助收入 | F4: 事业收入 | H4: 经营收入 | I4: 附属单位上缴收入 | J4: 其他收入
A5: 功能分类科目编码 | B5: 项目(按“项”级功能分类科目) | J5: 小计
F6: 小计 | G6: 其中：教育收费
A8: 合计 | C8: =C9+C12+C17+C21+C44 -> 8,468.65 | D8: =D9+D12+D17+D21+D44 -> 8,465.60 | J8: 3.05
A9: 205 | B9: 教育支出 | C9: 6.28 | D9: 6.28
A10: 20508 | B10: 进修及培训 | C10: 6.28 | D10: 6.28
A11: 2050803 | B11: 培训支出 | C11: 6.28 | D11: 6.28
A12: 208 | B12: 社会保障和就业支出 | C12: 127.96 | D12: 127.96
A13: 20805 | B13: 行政事业单位离退休 | C13: 127.96 | D13: 127.96
A14: 2080505 | B14: 机关事业单位基本养老保险缴费支出 | C14: 70.15 | D14: 70.15
A15: 2080506 | B15: 机关事业单位职业年金缴费支出 | C15: 32.02 | D15: 32.02
A16: 2080599 | B16: 其他行政事业单位离退休支出 | C16: 25.79 | D16: 25.79
A17: 210 | B17: 卫生健康支出 | C17: 57.14 | D17: 57.14
A18: 21011 | B18: 行政事业单位医疗 | C18: 57.14 | D18: 57.14
A19: 2101101 | B19: 行政单位医疗 | C19: 39.72 | D19: 39.72
A20: 2101103 | B20: 公务员医疗补助 | C20: 17.43 | D20: 17.43
A21: 211 | B21: 节能环保支出 | C21: 8,228.87 | D21: 8,225.82
A22: 21101 | B22: 环境保护管理事务 | C22: 1,795.11 | D22: 1,795.11
A23: 2110101 | B23: 行政运行 | C23: 953.56 | D23: 953.56
A24: 2110102 | B24: 一般行政管理事务 | C24: 736.55 | D24: 736.55
A25: 2110104 | B25: 生态环境保护宣传 | C25: 45.00 | D25: 45.00
A26: 2110199 | B26: 其他环境保护管理事务支出 | C26: 60.00 | D26: 60.00
A27: 21102 | B27: 环境监测与监察 | C27: 102.30 | D27: 102.30
A28: 2110203 | B28: 建设项目环评审查与监督 | C28: 86.30 | D28: 86.30
A29: 2110204 | B29: 核与辐射安全监督 | C29: 16.00 | D29: 16.00
A30: 21103 | B30: 污染防治 | C30: 3,285.85 | D30: 3,285.85
A31: 2110301 | B31: 大气 | C31: 913.70 | D31: 913.70
A32: 2110302 | B32: 水体 | C32: 2,364.65 | D32: 2,364.65
A33: 2110303 | B33: 噪声 | C33: 7.50 | D33: 7.50
A34: 21104 | B34: 自然生态保护 | C34: 133.62 | D34: 133.62
A35: 2110401 | B35: 生态保护 | C35: 53.00 | D35: 53.00
A36: 2110402 | B36: 农村环境保护 | C36: 80.62 | D36: 80.62
A37: 21111 | B37: 污染减排 | C37: 329.49 | D37: 326.44 | J37: 3.05
A38: 2111101 | B38: 生态环境监测与信息 | C38: 108.05 | D38: 105.00 | J38: 3.05
A39: 2111102 | B39: 生态环境执法监察 | C39: 204.68 | D39: 204.68
A40: 2111104 | B40: 清洁生产专项支出 | C40: 2.76 | D40: 2.76
A41: 2111199 | B41: 其他污染减排支出 | C41: 14.00 | D41: 14.00
A42: 21199 | B42: 其他节能环保支出 | C42: 2,582.50 | D42: 2,582.50
A43: 2119901 | B43: 其他节能环保支出 | C43: 2,582.50 | D43: 2,582.50
A44: 221 | B44: 住房保障支出 | C44: 48.40 | D44: 48.40
A45: 22102 | B45: 住房改革支出 | C45: 48.40 | D45: 48.40
A46: 2210201 | B46: 住房公积金 | C46: 48.40 | D46: 48.40
A47: 备注：本表反映部门本年度取得的各项收入情况。

Sheet 支出决算表
A1: 支出决算表
H2: 公开03表
A3: 公开部门：重庆市江津区生态环境局 | H3: 单位：万元
A4: 项目 | C4: 本年支出合计 | D4: 基本支出 | E4: 项目支出 | F4: 上缴上级支出 | G4: 经营支出 | H4: 对附属单位补助支出
A5: 功能分类科目编码 | B5: 项目(按“项”级功能分类科目)
A8: 合计 | C8: =C9+C12+C17+C21+C44 -> 6,156.61 | D8: =D9+D12+D17+D21+D44 -> 1,193.34 | E8: =E21 -> 4963.27
A9: 205 | B9: 教育支出 | C9: 6.28 | D9: 6.28
A10: 20508 | B10: 进修及培训 | C10: 6.28 | D10: 6.28
A11: 2050803 | B11: 培训支出 | C11: 6.28 | D11: 6.28
A12: 208 | B12: 社会保障和就业支出 | C12: 127.96 | D12: 127.96
A13: 20805 | B13: 行政事业单位离退休 | C13: 127.96 | D13: 127.96
A14: 2080505 | B14: 机关事业单位基本养老保险缴费支出 | C14: 70.15 | D14: 70.15
A15: 2080506 | B15: 机关事业单位职业年金缴费支出 | C15: 32.02 | D15: 32.02
A16: 2080599 | B16: 其他行政事业单位离退休支出 | C16: 25.79 | D16: 25.79
A17: 210 | B17: 卫生健康支出 | C17: 57.14 | D17: 57.14
A18: 21011 | B18: 行政事业单位医疗 | C18: 57.14 | D18: 57.14
A19: 2101101 | B19: 行政单位医疗 | C19: 39.72 | D19: 39.72
A20: 2101103 | B20: 公务员医疗补助 | C20: 17.43 | D20: 17.43
A21: 211 | B21: 节能环保支出 | C21: 5,916.83 | D21: 953.56 | E21: =E22+E27+E30+E34+E37+E42 -> 4963.27
A22: 21101 | B22: 环境保护管理事务 | C22: 1,764.64 | D22: 953.56 | E22: 811.07
A23: 2110101 | B23: 行政运行 | C23: 953.56 | D23: 953.56
A24: 2110102 | B24: 一般行政管理事务 | C24: 736.54 | E24: 736.54
A25: 2110104 | B25: 生态环境保护宣传 | C25: 45.00 | E25: 45
A26: 2110199 | B26: 其他环境保护管理事务支出 | C26: 29.53 | E26: 29.53
A27: 21102 | B27: 环境监测与监察 | C27: 102.30 | E27: 102.3
A28: 2110203 | B28: 建设项目环评审查与监督 | C28: 86.30 | E28: 86.3
A29: 2110204 | B29: 核与辐射安全监督 | C29: 16.00 | E29: 16
A30: 21103 | B30: 污染防治 | C30: 3,558.59 | E30: 3558.59
A31: 2110301 | B31: 大气 | C31: 687.30 | E31: 687.3
A32: 2110302 | B32: 水体 | C32: 2,863.79 | E32: 2863.79
A33: 2110303 | B33: 噪声 | C33: 7.50 | E33: 7.5
A34: 21104 | B34: 自然生态保护 | C34: 133.62 | E34: 133.62
A35: 2110401 | B35: 生态保护 | C35: 53.00 | E35: 53
A36: 2110402 | B36: 农村环境保护 | C36: 80.62 | E36: 80.62
A37: 21111 | B37: 污染减排 | C37: 232.49 | E37: 232.49
A38: 2111101 | B38: 生态环境监测与信息 | C38: 11.05 | E38: 11.05
A39: 2111102 | B39: 生态环境执法监察 | C39: 204.68 | E39: 204.68
A40: 2111104 | B40: 清洁生产专项支出 | C40: 2.76 | E40: 2.76
A41: 2111199 | B41: 其他污染减排支出 | C41: 14.00 | E41: 14
A42: 21199 | B42: 其他节能环保支出 | C42: 125.20 | E42: 125.2
A43: 2119901 | B43: 其他节能环保支出 | C43: 125.20 | E43: 125.2
A44: 221 | B44: 住房保障支出 | C44: 48.40 | D44: 48.40
A45: 22102 | B45: 住房改革支出 | C45: 48.40 | D45: 48.40
A46: 2210201 | B46: 住房公积金 | C46: 48.40 | D46: 48.40
A47: 备注：本表反映部门本年度各项支出情况。

Sheet 财政拨款收入支出决算总表
A1: 财政拨款收入支出决算总表
F2: 公开04表
A3: 公开部门：重庆市江津区生态环境局 | F3: 单位：万元
A4: 收入 | C4: 支出
A5: 项 目 | B5: 决算数 | C5: 功能分类科目 | D5: 决算数
D6: 小计 | E6: 一般公共预算财政拨款 | F6: 政府性基金预算财政拨款
A7: 一、一般公共预算财政拨款 | B7: 8,465.60 | C7: 一、教育支出 | D7: 6.28 | E7: 6.28
A8: 二、政府性基金预算财政拨款 | C8: 二、社会保障和就业支出 | D8: 127.96 | E8: 127.96
C9: 三、卫生健康支出 | D9: 57.14 | E9: 57.14
C10: 四、节能环保支出 | D10: 5913.78 | E10: 5913.78
C11: 五、住房保障支出 | D11: 48.40 | E11: 48.40
C12: 六、科学技术支出
C13: ……
A16: 本年收入合计 | B16: =SUM(B7:B15) -> 8,465.60 | C16: 本年支出合计 | D16: =SUM(D7:D15) -> 6,153.56 | E16: =SUM(E7:E15) -> 6,153.56
A17: 年初财政拨款结转和结余 | B17: 1,511.40 | C17: 年末财政拨款结转和结余 | D17: 3,823.44 | E17: 3,823.44
A18: 一、一般公共预算财政拨款 | B18: 1,511.40
A19: 二、政府性基金预算财政拨款
A20: 总计 | B20: =B16+B17 -> 9,977.00 | C20: 总计 | D20: =SUM(D16:D19) -> 9,977.00 | E20: =SUM(E16:E19) -> 9,977.00
A21: 备注：本表反映部门本年度一般公共预算财政拨款和政府性基金财政拨款的总收支和年末结转结余情况。

Sheet 一般公共预算财政拨款收入支出决算表
A1: 一般公共预算财政拨款收入支出决算表
H2: 公开05表
A3: 公开部门：重庆市江津区生态环境局 | H3: 单位：万元
A4: 功能分类科目编码 | B4: 项目(按“项”级功能分类科目) | C4: 年初结转和结余 | D4: 本年收入 | E4: 决算数 | H4: 年末结转和结余
E5: 合计 | F5: 基本支出 | G5: 项目支出
A6: 合 计 | C6: =C19 -> 1511.4 | D6: =D7+D10+D15+D19+D42 -> 8465.6 | E6: =E7+E10+E19+E42+E15 -> 6,153.56 | F6: =F7+F10+F15+F19+F42 -> 1,193.34 | G6: =G19 -> 4,960.23 | H6: =C6+D6-E6 -> 3,823.44
A7: 205 | B7: 教育支出 | D7: 6.28 | E7: 6.28 | F7: 6.28
A8: 20508 | B8: 进修及培训 | D8: 6.28 | E8: 6.28 | F8: 6.28
A9: 2050803 | B9: 培训支出 | D9: 6.28 | E9: 6.28 | F9: 6.28
A10: 208 | B10: 社会保障和就业支出 | D10: 127.96 | E10: 127.96 | F10: 127.96
A11: 20805 | B11: 行政事业单位离退休 | D11: 127.96 | E11: 127.96 | F11: 127.96
A12: 2080505 | B12: 机关事业单位基本养老保险缴费支出 | D12: 70.15 | E12: 70.15 | F12: 70.15
A13: 2080506 | B13: 机关事业单位职业年金缴费支出 | D13: 32.02 | E13: 32.02 | F13: 32.02
A14: 2080599 | B14: 其他行政事业单位离退休支出 | D14: 25.79 | E14: 25.79 | F14: 25.79
A15: 210 | B15: 卫生健康支出 | D15: 57.14 | E15: 57.14 | F15: 57.14
A16: 21011 | B16: 行政事业单位医疗 | D16: 57.14 | E16: 57.14 | F16: 57.14
A17: 2101101 | B17: 行政单位医疗 | D17: 39.72 | E17: 39.72 | F17: 39.72
A18: 2101103 | B18: 公务员医疗补助 | D18: 17.43 | E18: 17.43 | F18: 17.43
A19: 211 | B19: 节能环保支出 | C19: 1511.40 | D19: 8225.82 | E19: 5,913.78 | F19: 953.56 | G19: 4,960.23 | H19: 3,823.44
A20: 21101 | B20: 环境保护管理事务 | C20: 34.00 | D20: 1795.11 | E20: 1,764.63 | F20: 953.56 | G20: 811.08 | H20: 64.47
A21: 2110101 | B21: 行政运行 | D21: 953.56 | E21: 953.56 | F21: 953.56
A22: 2110102 | B22: 一般行政管理事务 | D22: 736.55 | E22: 736.54 | G22: 736.55
A23: 2110104 | B23: 生态环境保护宣传 | D23: 45 | E23: 45.00 | G23: 45.00
A24: 2110199 | B24: 其他环境保护管理事务支出 | C24: 34.00 | D24: 60 | E24: 29.53 | G24: 29.53 | H24: 64.47
A25: 21102 | B25: 环境监测与监察 | D25: 102.3 | E25: 102.30 | G25: 102.30
A26: 2110203 | B26: 建设项目环评审查与监督 | D26: 86.3 | E26: 86.30 | G26: 86.30
A27: 2110204 | B27: 核与辐射安全监督 | D27: 16 | E27: 16.00 | G27: 16.00
A28: 21103 | B28: 污染防治 | C28: 1415.00 | D28: 3285.85 | E28: 3,558.59 | G28: 3,558.59 | H28: 1,142.26
A29: 2110301 | B29: 大气 | D29: 913.7 | E29: 687.30 | G29: 687.30 | H29: 226.40
A30: 2110302 | B30: 水体 | C30: 1415.00 | D30: 2364.65 | E30: 2,863.79 | G30: 2,863.79 | H30: 915.86
A31: 2110303 | B31: 噪声 | D31: 7.5 | E31: 7.50 | G31: 7.50
A32: 21104 | B32: 自然生态保护 | D32: 133.62 | E32: 133.62 | G32: 133.62
A33: 2110401 | B33: 生态保护 | D33: 53 | E33: 53.00 | G33: 53.00
A34: 2110402 | B34: 农村环境保护 | D34: 80.62 | E34: 80.62 | G34: 80.62
A35: 21111 | B35: 污染减排 | D35: 326.44 | E35: 229.44 | G35: 229.44 | H35: 97.00
A36: 2111101 | B36: 生态环境监测与信息 | D36: 105 | E36: 8.00 | G36: 8.00 | H36: 97.00
A37: 2111102 | B37: 生态环境执法监察 | D37: 204.68 | E37: 204.68 | G37: 204.68
A38: 2111104 | B38: 清洁生产专项支出 | D38: 2.76 | E38: 2.76 | G38: 2.76
A39: 2111199 | B39: 其他污染减排支出 | D39: 14 | E39: 14.00 | G39: 14.00
A40: 21199 | B40: 其他节能环保支出 | C40: 62.40 | D40: 2582.5 | E40: 125.20 | G40: 125.20 | H40: 2,519.71
A41: 2119901 | B41: 其他节能环保支出 | C41: 62.40 | D41: 2582.5 | E41: 125.20 | G41: 125.20 | H41: 2,519.71
A42: 221 | B42: 住房保障支出 | D42: 48.4 | E42: 48.40 | F42: 48.40
A43: 22102 | B43: 住房改革支出 | D43: 48.4 | E43: 48.40 | F43: 48.40
A44: 2210201 | B44: 住房公积金 | D44: 48.4 | E44: 48.40 | F44: 48.40
A45: 备注：本表反映部门本年度一般公共预算财政拨款收支余情况。

Sheet 一般公共预算财政拨款基本支出决算表
A1: 一般公共预算财政拨款基本支出决算表
E2: 公开06表
A3: 公开部门：重庆市江津区生态环境局 | E3: 单位：万元
A4: 经济分类科目（按“款”级经济分类科目 | C4: 2019年一般公共预算基本支出
A5: 科目编码 | B5: 科目名称 | C5: 合计 | D5: 人员经费 | E5: 公用经费
A6: 合计 | C6: =C7+C19+C37 -> 1193.34 | D6: =D7+D37 -> 926.63 | E6: =E19 -> 266.71
A7: 301 | B7: 工资福利支出 | C7: 895.14 | D7: 895.14
A8: 30101 | B8: 基本工资 | C8: 219.55 | D8: 219.55
A9: 30102 | B9: 津贴补贴 | C9: 166.10 | D9: 166.10
A10: 30103 | B10: 奖金 | C10: 178.06 | D10: 178.06
A11: 30106 | B11: 伙食补助费 | C11: 0.05 | D11: 0.05
A12: 30108 | B12: 机关事业单位基本养老保险费 | C12: 70.15 | D12: 70.15
A13: 30109 | B13: 职业年金缴费 | C13: 32.02 | D13: 32.02
A14: 30110 | B14: 职工基本医疗保险缴费 | C14: 39.72 | D14: 39.72
A15: 30111 | B15: 公务员医疗补助缴费 | C15: 17.43 | D15: 17.43
A16: 30112 | B16: 其他社会保障缴费 | C16: 7.38 | D16: 7.38
A17: 30113 | B17: 住房公积金 | C17: 51.49 | D17: 51.49
A18: 30199 | B18: 其他工资福利支出 | C18: 113.20 | D18: 113.20
A19: 302 | B19: 商品和服务支出 | C19: 266.71 | E19: 266.71
A20: 30201 | B20: 办公费 | C20: 22.60 | E20: 22.60
A21: 30205 | B21: 水费 | C21: 1.57 | E21: 1.57
A22: 30206 | B22: 电费 | C22: 4.36 | E22: 4.36
A23: 30207 | B23: 邮电费 | C23: 21.57 | E23: 21.57
A24: 30209 | B24: 物业管理费 | C24: 14.37 | E24: 14.37
A25: 30211 | B25: 差旅费 | C25: 17.25 | E25: 17.25
A26: 30213 | B26: 维修（护）费 | C26: 22.45 | E26: 22.45
A27: 30214 | B27: 租赁费 | C27: 1.80 | E27: 1.80
A28: 30215 | B28: 会议费 | C28: 1.04 | E28: 1.04
A29: 30216 | B29: 培训费 | C29: 7.03 | E29: 7.03
A30: 30217 | B30: 公务接待费 | C30: 0.06 | E30: 0.06
A31: 30226 | B31: 劳务费 | C31: 13.89 | E31: 13.89
A32: 30228 | B32: 工会经费 | C32: 32.00 | E32: 32.00
A33: 30229 | B33: 福利费 | C33: 3.23 | E33: 3.23
A34: 30231 | B34: 公务用车运行维护费 | C34: 7.48 | E34: 7.48
A35: 30239 | B35: 其他交通费用 | C35: 56.09 | E35: 56.09
A36: 30299 | B36: 其他商品和服务支出 | C36: 39.92 | E36: 39.92
A37: 303 | B37: 对个人和家庭的补助 | C37: 31.49 | D37: 31.49
A38: 30305 | B38: 生活补助 | C38: 5.31 | D38: 5.31
A39: 30309 | B39: 奖励金 | C39: 2.24 | D39: 2.24
A40: 30399 | B40: 其他个人和家庭的补助支出 | C40: 23.94 | D40: 23.94
A41: 备注：本表反映部门本年度一般公共预算财政拨款基本支出明细情况。

Sheet 政府性基金预算财政拨款收入支出决算表
A1: 政府性基金预算财政拨款收入支出决算表
H2: 公开07表
A3: 公开部门：重庆市江津区生态环境局 | H3: 单位：万元
A4: 功能分类科目编码 | B4: 项目(按“项”级功能分类科目) | C4: 年初结转和结余 | D4: 本年收入 | E4: 本年支出 | H4: 年末结转和结余
E5: 合计 | F5: 基本支出 | G5: 项目支出
A6: 合计
A7: 208 | B7: 社会保障和就业支出
A8: 20822 | B8: 大中型水库移民后期扶持基金支出
A9: 2082201 | B9: 移民补助
A10: …… | B10: ……
A11: 212 | B11: 城乡社区支出
A12: 21207 | B12: 政府住房基金及对应专项债务收入安排的支出
A13: 2120702 | B13: 廉租住房支出
A14: …… | B14: ……
A15: 备注：本表反映部门本年度政府性基金预算财政拨款收入支出及结转结余情况。
A16: 本表为空的部门应将空表公开，并注明：本单位无政府性基金收入，也没有使用政府性基金安排的支出，故本表无数据。

Sheet 机构运行信息表
A1: 机构运行信息表
E2: 公开08表
A3: 公开部门：重庆市江津区生态环境局 | E3: 单位：万元
A4: 项 目 | B4: 预算数 | C4: 决算数 | D4: 项 目 | E4: 决算数
A5: 一、“三公”经费支出 | B5: — | C5: — | D5: 四、机关运行经费 | E5: 266.71
A6: （一）支出合计 | B6: 30.00 | C6: 18.84 | D6: （一）行政单位 | E6: 266.71
A7: 1．因公出国（境）费 | D7: （二）参照公务员法管理事业单位
A8: 2．公务用车购置及运行维护费 | B8: 15.00 | C8: 13.82 | D8: 五、国有资产占用情况
A9: （1）公务用车购置费 | D9: （一）车辆数合计（辆） | E9: 4
A10: （2）公务用车运行维护费 | B10: 15.00 | C10: 13.82 | D10: 1.副部（省）级及以上领导用车
A11: 3．公务接待费 | B11: 15.00 | C11: 5.01 | D11: 2.主要领导干部用车
A12: （1）国内接待费 | B12: 15.00 | C12: 5.01 | D12: 3.机要通信用车 | E12: 3
A13: 其中：外事接待费 | D13: 4.应急保障用车
A14: （2）国（境）外接待费 | D14: 5.执法执勤用车
A15: （二）相关统计数 | B15: — | D15: 6.特种专业技术用车 | E15: 1
A16: 1．因公出国（境）团组数（个） | B16: — | D16: 7.离退休干部用车
A17: 2．因公出国（境）人次数（人） | B17: — | D17: 8.其他用车
A18: 3．公务用车购置数（辆） | B18: — | D18: （二）单价50万元（含）以上通用设备（台，套）
A19: 4．公务用车保有量（辆） | B19: — | C19: 3 | D19: （三）单价100万（含）元以上专用设备（台，套）
A20: 5．国内公务接待批次（个） | B20: — | C20: 35 | D20: 六、政府采购支出信息
A21: 其中：外事接待批次（个） | B21: — | D21: （一）政府采购支出合计 | E21: 363.96
A22: 6．国内公务接待人次（人） | B22: — | C22: 850 | D22: 1．政府采购货物支出 | E22: 231.36
A23: 其中：外事接待人次（人） | B23: — | D23: 2．政府采购工程支出
A24: 7．国（境）外公务接待批次（个） | B24: — | D24: 3．政府采购服务支出 | E24: 132.6
A25: 8．国（境）外公务接待人次（人） | B25: — | D25: （二）政府采购授予中小企业合同金额 | E25: 363.96
A26: 二、会议费 | B26: 5.00 | C26: 1.22 | D26: 其中：授予小微企业合同金额 | E26: 328.01
A27: 三、培训费 | B27: 30.00 | C27: 20.91
A28: 备注：预算数年初部门预算批复数，决算数包括当年财政拨款预算和以前年度结转结余资金安排的实际支出。
A29: 本表为空的单位应将空表公开，并注明：本单位无相关数据，故本表为空。
